fUSD/lending_fUSD_20250330
["ID","MTS","AMOUNT","RATE_DAILY","PERIOD"]
[356873572,1743349850003,-500.0,0.00050483,120]
[356873573,1743349850013,-500.0,0.00050483,120]
[356873574,1743349850024,-500.0,0.00050483,120]
[356873575,1743349850035,-500.0,0.00050483,120]
[356873576,1743349850046,-805.57,0.00050483,30]
[356873577,1743349850055,-838.67,0.00050483,120]
[356873578,1743349850065,-577.3,0.00050483,120]
[356873579,1743349850074,-500.0,0.00050483,120]
[356873580,1743349850083,-500.0,0.00050483,120]
[356873581,1743349850094,-500.0,0.00050483,120]
[356873582,1743349850104,-1753.17,0.00050483,120]
[356873583,1743349850114,-1109.52,0.00050483,120]
[356873584,1743349850126,-500.0,0.00050483,120]
[356873585,1743349850135,-17146.7629543,0.0005049,4]
[356873586,1743349850144,-12653.83719773,0.000505,2]
[356873587,1743349850154,-17146.7629543,0.00050673,4]
[356873588,1743349850164,-17146.7629543,0.00050674,4]
[356873589,1743349850174,-150.13,0.00050674,120]
[356873590,1743349850183,-500.0,0.00050683,30]
[356873591,1743349850194,-500.0,0.00050683,120]
[356873592,1743349850206,-500.0,0.00050683,120]
[356873593,1743349850215,-500.0,0.00050683,120]
[356873594,1743349850226,-500.0,0.00050683,120]
[356873595,1743349850235,-500.0,0.00050683,120]
[356873596,1743349850245,-500.0,0.00050683,120]
[356873597,1743349850255,-544.55784822,0.00050683,120]
[356873598,1743349850264,-500.0,0.00050683,120]
[356873599,1743349850274,-500.0,0.00050683,120]
[356873600,1743349850283,-500.0,0.00050683,120]
[356873601,1743349850293,-500.0,0.00050683,120]
[356873602,1743349850303,-500.0,0.00050683,120]
[356873603,1743349850312,-500.0,0.00050683,120]
[356873604,1743349850452,-158.1232859,0.00050683,7]
[356873605,1743349850463,-500.0,0.00050683,120]
[356873606,1743349850473,-500.0,0.00050683,120]
[356873607,1743349850483,-500.0,0.00050683,120]
[356873608,1743349850492,-500.0,0.00050683,120]
[356873609,1743349850502,-1715.16,0.00050683,7]
[356873610,1743349850512,-500.0,0.00050683,120]
[356873611,1743349850522,-500.0,0.00050683,120]
[356873612,1743349850532,-500.0,0.00050683,120]
[356873613,1743349850542,-500.0,0.00050683,120]
[356873614,1743349850552,-579.21,0.00050683,120]
[356873615,1743349850562,-626.76,0.00050683,120]
[356873616,1743349850572,-500.0,0.00050683,120]
[356873617,1743349850582,-500.0,0.00050683,120]
[356873618,1743349850592,-500.0,0.00050683,120]
[356873619,1743349850602,-609.01,0.00050684,2]
[356873620,1743349850611,-500.0,0.00050684,120]
[356873621,1743349850620,-500.0,0.00050684,120]
[356873622,1743349850630,-500.0,0.00050684,120]
[356873623,1743349850640,-842.26,0.00050684,120]
[356873624,1743349850650,-500.0,0.00050684,120]
[356873625,1743349850660,-498.21479101,0.00050684,120]
[356873626,1743349850670,-505.62051963,0.00050684,7]
[356873627,1743349850680,-500.0,0.00050684,120]
[356873628,1743349850690,-2000.0,0.00050684,2]
[356873629,1743349850699,-500.0,0.00050684,2]
[356873630,1743349850710,-500.0,0.00050684,120]
[356873631,1743349850720,-500.0,0.00050684,120]
[356873632,1743349850730,-500.0,0.00050684,120]
[356873633,1743349850741,-500.0,0.00050684,120]
[356873634,1743349850751,-662.82,0.00050684,120]
[356873635,1743349850762,-500.0,0.00050684,120]
[356873636,1743349850772,-500.0,0.00050684,120]
[356873637,1743349850782,-500.0,0.00050684,120]
[356873638,1743349850792,-500.0,0.00050684,120]
[356873639,1743349850802,-521.22295989,0.00050684,120]
[356873640,1743349850812,-500.0,0.00050684,120]
[356873641,1743349850822,-17146.7629543,0.00050747,4]
[356873642,1743349850832,-574.65202233,0.00050756,120]
[356873643,1743349850842,-296.89919561,0.00050756,120]
[356873644,1743349850852,-500.0,0.00050756,120]
[356873645,1743349850864,-843.26,0.00050756,120]
[356873646,1743349850874,-500.0,0.00050756,120]
[356873647,1743349850884,-500.0,0.00050756,120]
[356873648,1743349850894,-500.0,0.00050756,120]
[356873649,1743349850904,-469.88295788,0.00050756,120]
[356873650,1743349850914,-500.0,0.00050756,120]
[356873651,1743349850924,-1287.54,0.00050756,120]
[356873652,1743349850934,-500.0,0.00050756,120]
[356873653,1743349850943,-3463.73,0.00050756,2]
[356873654,1743349850952,-500.0,0.00050756,120]
[356873655,1743349850962,-500.0,0.00050756,120]
[356873656,1743349850971,-500.0,0.00050756,120]
[356873657,1743349850981,-500.0,0.00050756,120]
[356873658,1743349850990,-939.42,0.00050756,120]
[356873659,1743349851000,-1247.6,0.00050756,120]
[356873660,1743349851009,-500.0,0.00050756,120]
[356873661,1743349851019,-5852.86,0.00050756,2]
[356873662,1743349851028,-500.0,0.00050756,120]
[356873663,1743349851038,-500.0,0.00050756,120]
[356873664,1743349851048,-1040.27,0.00050756,120]
[356873665,1743349851058,-1170.33,0.00050756,2]
[356873666,1743349851068,-500.0,0.00050757,120]
[356873667,1743349851077,-1140.41,0.00050757,120]
[356873668,1743349851087,-500.0,0.00050757,120]
[356873669,1743349851097,-500.0,0.00050757,120]
[356873670,1743349851106,-373.31972026,0.00050757,120]
[356873671,1743349851117,-500.0,0.00050757,120]
[356873672,1743349851131,-253.03612497,0.00050757,120]
[356873673,1743349851140,-500.0,0.00050757,120]
[356873674,1743349851150,-805.57,0.00050757,30]
[356873675,1743349851160,-838.67,0.00050757,120]
[356873676,1743349851170,-577.3,0.00050757,120]
[356873677,1743349851180,-500.0,0.00050757,120]
[356873678,1743349851190,-500.0,0.00050757,120]
[356873679,1743349851200,-500.0,0.00050757,120]
[356873680,1743349851210,-1753.17,0.00050757,120]
[356873681,1743349851219,-1109.52,0.00050757,120]
[356873682,1743349851228,-500.0,0.00050757,120]
[356873683,1743349851238,-17146.7629543,0.00050947,4]
[356873684,1743349851248,-18349.1933936,0.00050947,4]
[356873685,1743349851257,-500.0,0.00050957,30]
[356873686,1743349851267,-500.0,0.00050957,120]
[356873687,1743349851277,-500.0,0.00050957,120]
[356873688,1743349851286,-500.0,0.00050957,120]
[356873689,1743349851296,-500.0,0.00050957,120]
[356873690,1743349851306,-500.0,0.00050957,120]
[356873691,1743349851315,-500.0,0.00050957,120]
[356873692,1743349851326,-500.0,0.00050957,120]
[356873693,1743349851335,-500.0,0.00050957,120]
[356873694,1743349851346,-500.0,0.00050957,120]
[356873695,1743349851356,-279.67554521,0.00050957,120]
[356873696,1743349851366,-500.0,0.00050957,120]
[356873697,1743349851376,-500.0,0.00050957,120]
[356873698,1743349851386,-235.2658408,0.00050957,120]
[356873699,1743349851396,-181.79783189,0.00050957,120]
[356873700,1743349851405,-500.0,0.00050957,120]
[356873701,1743349851415,-500.0,0.00050957,120]
[356873702,1743349851425,-1715.16,0.00050957,7]
[356873703,1743349851435,-500.0,0.00050957,120]
[356873704,1743349851445,-500.0,0.00050957,120]
[356873705,1743349851455,-500.0,0.00050957,120]
[356873706,1743349851464,-500.0,0.00050957,120]
[356873707,1743349851474,-579.21,0.00050957,120]
[356873708,1743349851484,-626.76,0.00050957,120]
[356873709,1743349851493,-500.0,0.00050957,120]
[356873710,1743349851503,-500.0,0.00050957,120]
[356873711,1743349851513,-500.0,0.00050957,120]
[356873712,1743349851523,-609.01,0.00050958,2]
[356873713,1743349851532,-500.0,0.00050958,120]
[356873714,1743349851543,-500.0,0.00050958,120]
[356873715,1743349851552,-500.0,0.00050958,120]
[356873716,1743349851562,-842.26,0.00050958,120]
[356873717,1743349851572,-500.0,0.00050958,120]
[356873718,1743349851581,-500.0,0.00050958,120]
[356873719,1743349851591,-2000.0,0.00050958,2]
[356873720,1743349851601,-500.0,0.00050958,2]
[356873721,1743349851610,-326.022571,0.00050958,120]
[356873722,1743349851620,-500.0,0.00050958,120]
[356873723,1743349851630,-500.0,0.00050958,120]
[356873724,1743349851640,-500.0,0.00050958,120]
[356873725,1743349851650,-662.82,0.00050958,120]
[356873726,1743349851659,-500.0,0.00050958,120]
[356873727,1743349851669,-500.0,0.00050958,120]
[356873728,1743349851678,-500.0,0.00050958,120]
[356873729,1743349851688,-500.0,0.00050958,120]
[356873730,1743349851698,-261.9622915,0.00050958,120]
[356873731,1743349851707,-34293.5259087,0.0005097,4]
[356873732,1743349851716,-18349.1933936,0.0005097,4]
[356873733,1743349851726,-68587.0518173,0.0005098,4]
[356873734,1743349851736,-73396.7735744,0.0005098,4]
[356873735,1743349851745,-212.09825073,0.0005098,7]
[356873736,1743349851755,-36886.49267136,0.0005099,4]
[356873737,1743349851801,-117434.37391764,0.0005099,4]
[356873738,1743349851810,-165142.740542,0.0005099,4]
[356873739,1743349851820,-500.0,0.00050999,120]
[356873740,1743349851830,-500.0,0.00050999,120]
[356873741,1743349851839,-308030.88563659,0.00051,120]
[356873742,1743349851849,-289.93436234,0.0005102,120]
[356873743,1743349851858,-18349.1933936,0.00051021,4]
[356873744,1743349851867,-500.0,0.0005103,120]
[356873745,1743349851877,-843.26,0.0005103,120]
[356873746,1743349851886,-500.0,0.0005103,120]
[356873747,1743349851896,-500.0,0.0005103,120]
[356873748,1743349851905,-500.0,0.0005103,120]
[356873749,1743349851915,-500.0,0.0005103,120]
[356873750,1743349851924,-1287.54,0.0005103,120]
[356873751,1743349851933,-500.0,0.0005103,120]
[356873752,1743349851944,-3463.73,0.0005103,2]
[356873753,1743349851953,-500.0,0.0005103,120]
[356873754,1743349851963,-500.0,0.0005103,120]
[356873755,1743349851972,-500.0,0.0005103,120]
[356873756,1743349851982,-500.0,0.0005103,120]
[356873757,1743349851991,-939.42,0.0005103,120]
[356873758,1743349852000,-1247.6,0.0005103,120]
[356873759,1743349852009,-643.17342188,0.0005103,120]
[356873760,1743349852019,-5852.86,0.0005103,2]
[356873761,1743349852028,-500.0,0.0005103,120]
[356873762,1743349852038,-500.0,0.0005103,120]
[356873763,1743349852047,-1040.27,0.0005103,120]
[356873764,1743349852057,-1170.33,0.0005103,2]
[356873765,1743349852066,-500.0,0.00051031,120]
[356873766,1743349852075,-1140.41,0.00051031,120]
[356873767,1743349852084,-500.0,0.00051031,120]
[356873768,1743349852094,-500.0,0.00051031,120]
[356873769,1743349852103,-500.0,0.00051031,120]
[356873770,1743349852112,-500.0,0.00051031,120]
[356873771,1743349852123,-805.57,0.00051031,30]
[356873772,1743349852133,-838.67,0.00051031,120]
[356873773,1743349852142,-577.3,0.00051031,120]
[356873774,1743349852151,-500.0,0.00051031,120]
[356873775,1743349852161,-500.0,0.00051031,120]
[356873776,1743349852171,-500.0,0.00051031,120]
[356873777,1743349852180,-1753.17,0.00051031,120]
[356873778,1743349852190,-1109.52,0.00051031,120]
[356873779,1743349852200,-500.0,0.00051031,120]
[356873780,1743349852209,-500.0,0.00051164,120]
[356873781,1743349852218,-18349.1933936,0.00051221,4]
[356873782,1743349852228,-179.93897737,0.00051222,30]
[356873783,1743349852237,-500.0,0.00051231,30]
[356873784,1743349852247,-500.0,0.00051231,120]
[356873785,1743349852256,-500.0,0.00051231,120]
[356873786,1743349852265,-522.44080894,0.00051231,120]
[356873787,1743349852275,-500.0,0.00051231,120]
[356873788,1743349852284,-500.0,0.00051231,120]
[356873789,1743349852294,-500.0,0.00051231,120]
[356873790,1743349852303,-500.0,0.00051231,120]
[356873791,1743349852313,-263.69005938,0.00051231,120]
[356873792,1743349852323,-500.0,0.00051231,120]
[356873793,1743349852333,-500.0,0.00051231,120]
[356873794,1743349852342,-500.0,0.00051231,120]
[356873795,1743349852351,-500.0,0.00051231,120]
[356873796,1743349852360,-500.0,0.00051231,120]
[356873797,1743349852369,-1715.16,0.00051231,7]
[356873798,1743349852379,-500.0,0.00051231,120]
[356873799,1743349852388,-500.0,0.00051231,120]
[356873800,1743349852398,-470.15879746,0.00051231,120]
[356873801,1743349852407,-500.0,0.00051231,120]
[356873802,1743349852416,-579.21,0.00051231,120]
[356873803,1743349852426,-626.76,0.00051231,120]
[356873804,1743349852435,-500.0,0.00051231,120]
[356873805,1743349852445,-500.0,0.00051231,120]
[356873806,1743349852454,-500.0,0.00051231,120]
[356873807,1743349852464,-401.532232,0.00051232,120]
[356873808,1743349852473,-609.01,0.00051232,2]
[356873809,1743349852483,-500.0,0.00051232,120]
[356873810,1743349852492,-500.0,0.00051232,120]
[356873811,1743349852502,-500.0,0.00051232,120]
[356873812,1743349852511,-842.26,0.00051232,120]
[356873813,1743349852520,-500.0,0.00051232,120]
[356873814,1743349852530,-500.0,0.00051232,120]
[356873815,1743349852539,-2000.0,0.00051232,2]
[356873816,1743349852548,-500.0,0.00051232,2]
[356873817,1743349852557,-500.0,0.00051232,120]
[356873818,1743349852567,-500.0,0.00051232,120]
[356873819,1743349852576,-500.0,0.00051232,120]
[356873820,1743349852586,-662.82,0.00051232,120]
[356873821,1743349852595,-500.0,0.00051232,120]
[356873822,1743349852604,-564.8464646,0.00051232,120]
[356873823,1743349852614,-500.0,0.00051232,120]
[356873824,1743349852624,-18349.1933936,0.00051233,4]
[356873825,1743349852633,-233.42986792,0.00051304,120]
[356873826,1743349852642,-843.26,0.00051304,120]
[356873827,1743349852652,-500.0,0.00051304,120]
[356873828,1743349852661,-500.0,0.00051304,120]
[356873829,1743349852670,-500.0,0.00051304,120]
[356873830,1743349852680,-500.0,0.00051304,120]
[356873831,1743349852689,-1287.54,0.00051304,120]
[356873832,1743349852698,-500.0,0.00051304,120]
[356873833,1743349852708,-3463.73,0.00051304,2]
[356873834,1743349852717,-500.0,0.00051304,120]
[356873835,1743349852726,-500.0,0.00051304,120]
[356873836,1743349852735,-500.0,0.00051304,120]
[356873837,1743349852744,-247.90325776,0.00051304,120]
[356873838,1743349852754,-939.42,0.00051304,120]
[356873839,1743349852763,-1247.6,0.00051304,120]
[356873840,1743349852772,-5852.86,0.00051304,2]
[356873841,1743349852781,-500.0,0.00051304,120]
[356873842,1743349852816,-500.0,0.00051304,120]
[356873843,1743349852825,-1040.27,0.00051304,120]
[356873844,1743349852835,-1170.33,0.00051304,2]
[356873846,1743349852844,-500.0,0.00051305,120]
[356873847,1743349852853,-1140.41,0.00051305,120]
[356873848,1743349852862,-500.0,0.00051305,120]
[356873849,1743349852871,-500.0,0.00051305,120]
[356873850,1743349852880,-500.0,0.00051305,120]
[356873851,1743349852890,-500.0,0.00051305,120]
[356873852,1743349852899,-805.57,0.00051305,30]
[356873853,1743349852908,-838.67,0.00051305,120]
[356873854,1743349852917,-577.3,0.00051305,120]
[356873855,1743349852926,-500.0,0.00051305,120]
[356873856,1743349852935,-500.0,0.00051305,120]
[356873857,1743349852944,-500.0,0.00051305,120]
[356873858,1743349852953,-1753.17,0.00051305,120]
[356873859,1743349852963,-1109.52,0.00051305,120]
[356873860,1743349852972,-500.0,0.00051305,120]
[356873861,1743349852982,-18349.1933936,0.00051376,4]
[356873862,1743349852991,-18349.1933936,0.00051386,4]
[356873863,1743349853001,-55047.5801808,0.00051396,4]
[356873864,1743349853010,-1001.9316,0.00051399,30]
[356873865,1743349853019,-387.81947943,0.00051405,120]
[356873866,1743349853029,-18349.1933936,0.00051495,4]
[356873867,1743349853038,-500.0,0.00051505,30]
[356873868,1743349853047,-500.0,0.00051505,120]
[356873869,1743349853056,-643.67369915,0.00051505,120]
[356873870,1743349853066,-500.0,0.00051505,120]
[356873871,1743349853075,-500.0,0.00051505,120]
[356873872,1743349853084,-500.0,0.00051505,120]
[356873873,1743349853093,-500.0,0.00051505,120]
[356873874,1743349853102,-346.76268324,0.00051505,120]
[356873875,1743349853111,-500.0,0.00051505,120]
[356873876,1743349853122,-500.0,0.00051505,120]
[356873877,1743349853134,-500.0,0.00051505,120]
[356873878,1743349853143,-500.0,0.00051505,120]
[356873879,1743349853152,-1715.16,0.00051505,7]
[356873880,1743349853163,-500.0,0.00051505,120]
[356873881,1743349853172,-500.0,0.00051505,120]
[356873882,1743349853182,-500.0,0.00051505,120]
[356873883,1743349853191,-579.21,0.00051505,120]
[356873884,1743349853201,-626.76,0.00051505,120]
[356873885,1743349853212,-184.66028318,0.00051505,120]
[356873886,1743349853221,-500.0,0.00051505,120]
[356873887,1743349853230,-514.76517805,0.00051505,120]
[356873888,1743349853239,-401.532232,0.00051506,120]
[356873889,1743349853249,-609.01,0.00051506,2]
[356873890,1743349853258,-500.0,0.00051506,120]
[356873891,1743349853267,-500.0,0.00051506,120]
[356873892,1743349853275,-500.0,0.00051506,120]
[356873893,1743349853285,-842.26,0.00051506,120]
[356873894,1743349853295,-500.0,0.00051506,120]
[356873895,1743349853304,-500.0,0.00051506,120]
[356873896,1743349853313,-582.05671104,0.00051506,2]
[356873897,1743349853322,-500.0,0.00051506,2]
[356873898,1743349853331,-608.34525154,0.00051506,120]
[356873899,1743349853341,-500.0,0.00051506,120]
[356873900,1743349853350,-529.62618818,0.00051506,120]
[356873901,1743349853359,-662.82,0.00051506,120]
[356873902,1743349853369,-500.0,0.00051506,120]
[356873903,1743349853379,-500.0,0.00051506,120]
[356873904,1743349853388,-18349.1933936,0.00051507,4]
[356873905,1743349853397,-843.26,0.00051578,120]
[356873906,1743349853406,-500.0,0.00051578,120]
[356873907,1743349853415,-500.0,0.00051578,120]
[356873908,1743349853424,-500.0,0.00051578,120]
[356873909,1743349853434,-500.0,0.00051578,120]
[356873910,1743349853443,-1287.54,0.00051578,120]
[356873911,1743349853452,-500.0,0.00051578,120]
[356873912,1743349853461,-3463.73,0.00051578,2]
[356873913,1743349853470,-500.0,0.00051578,120]
[356873914,1743349853480,-500.0,0.00051578,120]
[356873915,1743349853489,-500.0,0.00051578,120]
[356873916,1743349853498,-939.42,0.00051578,120]
[356873917,1743349853508,-1247.6,0.00051578,120]
[356873918,1743349853518,-5852.86,0.00051578,2]
[356873919,1743349853527,-236.22811072,0.00051578,120]
[356873920,1743349853536,-500.0,0.00051578,120]
[356873921,1743349853546,-1040.27,0.00051578,120]
[356873922,1743349853555,-1170.33,0.00051578,2]
[356873923,1743349853564,-500.0,0.00051579,120]
[356873924,1743349853573,-1140.41,0.00051579,120]
[356873925,1743349853582,-500.0,0.00051579,120]
[356873926,1743349853591,-500.0,0.00051579,120]
[356873927,1743349853601,-302.23558819,0.00051579,120]
[356873928,1743349853610,-500.0,0.00051579,120]
[356873929,1743349853620,-805.57,0.00051579,30]
[356873930,1743349853629,-838.67,0.00051579,120]
[356873931,1743349853638,-577.3,0.00051579,120]
[356873932,1743349853647,-347.50246773,0.00051579,120]
[356873933,1743349853656,-500.0,0.00051579,120]
[356873934,1743349853665,-500.0,0.00051579,120]
[356873935,1743349853675,-1753.17,0.00051579,120]
[356873936,1743349853684,-1109.52,0.00051579,120]
[356873937,1743349853694,-500.0,0.00051579,120]
[356873938,1743349853704,-280.811991,0.00051625,5]
[356873939,1743349853713,-500.0,0.00051729,60]
[356873940,1743349853723,-18349.1933936,0.0005175,4]
[356873941,1743349853732,-18349.1933936,0.00051769,4]
[356873942,1743349853741,-500.0,0.00051779,30]
[356873943,1743349853750,-500.0,0.00051779,120]
[356873944,1743349853760,-500.0,0.00051779,120]
[356873945,1743349853769,-500.0,0.00051779,120]
[356873946,1743349853779,-500.0,0.00051779,120]
[356873947,1743349853788,-500.0,0.00051779,120]
[356873948,1743349853797,-500.0,0.00051779,120]
[356873949,1743349853807,-500.0,0.00051779,120]
[356873950,1743349853816,-500.0,0.00051779,120]
[356873951,1743349853826,-500.0,0.00051779,120]
[356873952,1743349853835,-1715.16,0.00051779,7]
[356873953,1743349853845,-500.0,0.00051779,120]
[356873954,1743349853855,-500.0,0.00051779,120]
[356873955,1743349853865,-500.0,0.00051779,120]
[356873956,1743349853875,-579.21,0.00051779,120]
[356873957,1743349853884,-626.76,0.00051779,120]
[356873958,1743349853894,-500.0,0.00051779,120]
[356873959,1743349853903,-401.532232,0.0005178,120]
[356873960,1743349853912,-609.01,0.0005178,2]
[356873961,1743349853922,-257.19718162,0.0005178,120]
[356873962,1743349853942,-500.0,0.0005178,120]
[356873963,1743349853951,-500.0,0.0005178,120]
[356873964,1743349853960,-842.26,0.0005178,120]
[356873965,1743349853970,-500.0,0.0005178,120]
[356873966,1743349853981,-500.0,0.0005178,120]
[356873967,1743349853991,-500.0,0.0005178,2]
[356873968,1743349854000,-500.0,0.0005178,120]
[356873969,1743349854009,-662.82,0.0005178,120]
[356873970,1743349854019,-500.0,0.0005178,120]
[356873971,1743349854029,-500.0,0.0005178,120]
[356873972,1743349854039,-303.0,0.00051785,7]
[356873973,1743349854048,-843.26,0.00051852,120]
[356873974,1743349854058,-500.0,0.00051852,120]
[356873975,1743349854068,-500.0,0.00051852,120]
[356873976,1743349854078,-500.0,0.00051852,120]
[356873977,1743349854088,-500.0,0.00051852,120]
[356873978,1743349854098,-1287.54,0.00051852,120]
[356873979,1743349854107,-500.0,0.00051852,120]
[356873980,1743349854118,-3463.73,0.00051852,2]
[356873981,1743349854132,-500.0,0.00051852,120]
[356873982,1743349854142,-500.0,0.00051852,120]
[356873983,1743349854152,-500.0,0.00051852,120]
[356873984,1743349854162,-939.42,0.00051852,120]
[356873985,1743349854172,-1247.6,0.00051852,120]
[356873986,1743349854181,-4448.3704541,0.00051852,2]
[356873987,1743350043560,1895.4,0.00025,2]
[356873988,1743350821212,154.84,0.00025,60]
[356874016,1743351032266,-250.0,0.00025,2]
[356874017,1743351032276,-203.14,0.00026849,2]
[356874018,1743351032285,-300.0,0.00027,2]
[356874019,1743351032294,-350.0,0.00029,2]
[356874020,1743351032303,-400.0,0.00031,2]
[356874021,1743351032313,-203.14,0.00032646,2]
[356874022,1743351032322,-450.0,0.00033,2]
[356874023,1743351032332,-1002.2223372,0.00033296,5]
[356874024,1743351032341,-500.0,0.00035,2]
[356874025,1743351032350,-202.672,0.00036813,2]
[356874026,1743351032359,-300.0,0.00036999,2]
[356874027,1743351032369,-191.0,0.00036999,30]
[356874032,1743351032536,-550.0,0.00037,2]
[356874033,1743351032546,-649.87,0.00037,2]
[356874034,1743351032556,-9999.99,0.00037,2]
[356874035,1743351032567,-294.83,0.00037,2]
[356874036,1743351032576,-773.21,0.00037,2]
[356874037,1743351032585,-10042.06,0.00037,10]
[356874038,1743351032594,-150.99,0.00037,2]
[356874039,1743351032605,-157.744805,0.000371,2]
[356874040,1743351032614,-203.14,0.00038443,2]
[356874041,1743351032623,-244.65,0.000402,2]
[356874042,1743351032634,-270.71147617,0.00041096,2]
[356874043,1743351032643,-254.25468644,0.00044034,2]
[356874044,1743351032654,-368.7982405,0.00044043,120]
[356874045,1743351032663,-2039.0,0.00044044,2]
[356874047,1743351032673,-1283.0,0.00044044,2]
[356874049,1743351032682,-152.957,0.00044044,2]
[356874051,1743351032692,-643.0,0.00044044,2]
[356874053,1743351032701,-712.22,0.00044044,2]
[356874055,1743351032710,-1422.0,0.00044044,2]
[356874057,1743351032719,-789.0,0.00044044,2]
[356874058,1743351032728,-1274.0,0.00044044,2]
[356874060,1743351032737,-908.0,0.00044044,2]
[356874062,1743351032746,-543.0,0.00044044,2]
[356874064,1743351032756,-1433.0,0.00044044,2]
[356874065,1743351032766,-4090.0,0.00044044,2]
[356874066,1743351032775,-3947.0,0.00044044,2]
[356874067,1743351032785,-1016.0,0.00044044,2]
[356874068,1743351032795,-151.0,0.00044044,2]
[356874069,1743351032804,-203.14,0.00044239,2]
[356874070,1743351032813,-233.45,0.00044894,2]
[356874071,1743351032823,-157.744805,0.00045995,3]
[356874072,1743351032833,-160.0462392,0.0004602,10]
[356874073,1743351032842,-164.44,0.00046044,30]
[356874074,1743351032851,-157.744805,0.0004615,2]
[356874075,1743351032861,-163.87,0.00046548,2]
[356874076,1743351032870,-930.29,0.00046568,2]
[356874077,1743351032879,-3027.36,0.00046588,2]
[356874079,1743351032889,-586.0,0.00046767,30]
[356874080,1743351032898,-1000.0,0.00046826,2]
[356874081,1743351032908,-250.0,0.00046888,120]
[356874082,1743351032917,-2751.0,0.00046891,120]
[356874083,1743351032926,-153.49,0.00046943,2]
[356874084,1743351032936,-158.24,0.00047021,120]
[356874085,1743351032945,-250.0,0.00047038,120]
[356874086,1743351032954,-2039.0,0.00047044,2]
[356874087,1743351032963,-1283.0,0.00047044,2]
[356874088,1743351032972,-643.0,0.00047044,2]
[356874089,1743351032982,-573.0,0.00047044,2]
[356874090,1743351032991,-1422.0,0.00047044,2]
[356874091,1743351033001,-789.0,0.00047044,2]
[356874092,1743351033011,-1274.0,0.00047044,2]
[356874093,1743351033020,-908.0,0.00047044,2]
[356874094,1743351033030,-543.0,0.00047044,2]
[356874095,1743351033044,-1433.0,0.00047044,2]
[356874096,1743351033055,-4090.0,0.00047044,2]
[356874097,1743351033066,-3947.0,0.00047044,2]
[356874098,1743351033076,-1014.0,0.00047044,2]
[356874099,1743351033086,-151.0,0.00047044,2]
[356874100,1743351033096,-233.45,0.00047158,2]
[356874101,1743351033106,-8600.08,0.00047205,2]
[356874102,1743351033116,-379.06771053,0.00047221,120]
[356874103,1743351033127,-586.0,0.00047249,30]
[356874104,1743351033136,-206.0,0.0004767,30]
[356874105,1743351033146,-586.0,0.00047731,30]
[356874106,1743351033156,-886.81,0.00048038,2]
[356874107,1743351033166,-161.54,0.00048171,120]
[356874108,1743351033175,-586.0,0.00048214,30]
[356874109,1743351033185,-228.8547605,0.00048214,30]
[356874110,1743351033194,-2000.0,0.00048303,120]
[356874111,1743351033204,-150.0,0.0004831,2]
[356874112,1743351033214,-166.66,0.00048446,2]
[356874113,1743351033223,-586.0,0.00048696,30]